fUSD/lending_fUSD_20250712
["ID","MTS","AMOUNT","RATE_DAILY","PERIOD"]
[371602195,1752364296991,-16506.31,0.0005863,120]
[371602196,1752364297001,-460.0,0.0005863,120]
[371602197,1752364297011,-460.0,0.0005863,120]
[371602198,1752364297022,-1062.36,0.0005863,120]
[371602199,1752364297032,-568.75,0.0005863,120]
[371602200,1752364297042,-808.29,0.0005863,120]
[371602201,1752364297052,-639.46,0.0005863,120]
[371602202,1752364297063,-460.0,0.0005863,120]
[371602203,1752364297073,-851.14,0.0005863,120]
[371602204,1752364297083,-460.0,0.0005863,120]
[371602205,1752364297093,-460.0,0.0005863,120]
[371602206,1752364297103,-901.69,0.0005863,120]
[371602207,1752364297114,-460.0,0.0005863,120]
[371602208,1752364297124,-460.0,0.0005863,120]
[371602209,1752364297134,-704.31,0.0005863,120]
[371602210,1752364297144,-1263.98,0.0005863,120]
[371602211,1752364297154,-1088.2,0.0005863,120]
[371602212,1752364297165,-2466.13,0.0005863,120]
[371602213,1752364297175,-1043.74,0.0005863,120]
[371602214,1752364297189,-511.89,0.0005863,120]
[371602215,1752364297199,-550.6,0.0005863,120]
[371602216,1752364297210,-490.37,0.0005863,120]
[371602217,1752364297221,-1386.63,0.0005863,120]
[371602218,1752364297231,-925.69,0.0005863,120]
[371602219,1752364297242,-934.66,0.0005863,120]
[371602220,1752364297253,-2777.03,0.0005863,120]
[371602221,1752364297263,-560.38,0.0005863,120]
[371602222,1752364297272,-460.0,0.0005863,120]
[371602223,1752364297283,-460.0,0.0005863,120]
[371602224,1752364297293,-708.62,0.0005863,120]
[371602225,1752364297303,-357.573949,0.0005863,120]
[371602226,1752364297314,-460.0,0.0005863,120]
[371602227,1752364297324,-460.0,0.0005863,120]
[371602228,1752364297334,-357.573949,0.0005863,120]
[371602229,1752364297344,-708.99,0.0005863,120]
[371602230,1752364297355,-751.92,0.0005863,120]
[371602231,1752364297364,-1000.0,0.0005863,120]
[371602232,1752364297374,-618.86,0.0005863,120]
[371602233,1752364297384,-460.0,0.0005863,120]
[371602234,1752364297394,-460.0,0.0005863,120]
[371602235,1752364297404,-1398.75,0.0005863,120]
[371602236,1752364297414,-1309.36,0.0005863,120]
[371602237,1752364297424,-1024.35,0.0005863,120]
[371602238,1752364297437,-357.573949,0.0005863,120]
[371602239,1752364297446,-357.573949,0.0005863,120]
[371602240,1752364297456,-460.0,0.0005863,120]
[371602241,1752364297466,-1856.16,0.0005863,120]
[371602242,1752364297476,-647.3,0.0005863,120]
[371602243,1752364297486,-953.49,0.0005863,120]
[371602244,1752364297496,-1914.0,0.0005863,120]
[371602245,1752364297506,-460.0,0.0005863,120]
[371602246,1752364297516,-460.0,0.0005863,120]
[371602247,1752364297525,-913.3,0.0005863,120]
[371602248,1752364297535,-460.0,0.0005863,120]
[371602249,1752364297545,-621.18,0.0005863,120]
[371602250,1752364297556,-460.0,0.0005863,120]
[371602251,1752364297566,-608.72,0.0005863,120]
[371602252,1752364297576,-460.0,0.0005863,120]
[371602253,1752364297586,-2094.2,0.0005863,120]
[371602254,1752364297597,-2842.1,0.0005863,120]
[371602255,1752364297607,-460.0,0.0005863,120]
[371602256,1752364297617,-2448.71,0.0005863,120]
[371602257,1752364297627,-709.15,0.0005863,120]
[371602258,1752364297638,-757.97,0.0005863,120]
[371602259,1752364297650,-866.49,0.0005863,120]
[371602260,1752364297660,-460.0,0.0005863,120]
[371602261,1752364297670,-589.51,0.0005863,120]
[371602262,1752364297682,-769.72,0.0005863,120]
[371602263,1752364297692,-460.0,0.0005863,120]
[371602264,1752364297702,-899.1,0.0005863,120]
[371602265,1752364297713,-5646.99,0.0005863,120]
[371602266,1752364297723,-465.49338471,0.0005863,120]
[371602267,1752364297733,-2342.37,0.0005863,120]
[371602268,1752364297743,-460.0,0.0005863,120]
[371602269,1752364297753,-460.0,0.0005863,120]
[371602270,1752364297764,-470.94,0.0005863,120]
[371602271,1752364297774,-460.0,0.0005863,120]
[371602272,1752364297784,-1726.51,0.0005863,120]
[371602273,1752364297794,-460.0,0.0005863,120]
[371602274,1752364297804,-460.0,0.0005863,120]
[371602275,1752364297815,-460.0,0.0005863,120]
[371602276,1752364297825,-3024.53,0.0005863,120]
[371602277,1752364297835,-2263.15,0.0005863,120]
[371602278,1752364297845,-1771.49,0.0005863,120]
[371602279,1752364297855,-521.4,0.0005863,120]
[371602280,1752364297865,-460.0,0.0005863,120]
[371602281,1752364297875,-460.0,0.0005863,120]
[371602282,1752364297885,-3781.63,0.0005863,120]
[371602283,1752364297894,-460.0,0.0005863,120]
[371602284,1752364297904,-460.0,0.0005863,120]
[371602285,1752364297914,-460.0,0.0005863,120]
[371602286,1752364297923,-777.25,0.0005863,120]
[371602287,1752364297935,-2228.39,0.0005863,120]
[371602288,1752364297945,-2232.72,0.0005863,120]
[371602289,1752364297955,-460.0,0.0005863,120]
[371602290,1752364297966,-870.02,0.0005863,120]
[371602291,1752364297976,-460.0,0.0005863,120]
[371602292,1752364297986,-688.8,0.0005863,120]
[371602293,1752364297996,-482.19,0.0005863,120]
[371602294,1752364298006,-460.0,0.0005863,120]
[371602295,1752364298247,-460.0,0.0005863,120]
[371602296,1752364298295,-460.0,0.0005863,120]
[371602297,1752364298305,-460.0,0.0005863,120]
[371602298,1752364298316,-1036.81,0.0005863,120]
[371602299,1752364298326,-1029.96,0.0005863,120]
[371602300,1752364298335,-622.65,0.0005863,120]
[371602301,1752364298345,-701.47,0.0005863,120]
[371602302,1752364298354,-460.0,0.0005863,120]
[371602303,1752364298364,-460.0,0.0005863,120]
[371602304,1752364298373,-4930.6,0.0005863,120]
[371602305,1752364298383,-2645.81,0.0005863,120]
[371602306,1752364298392,-865.36,0.0005863,120]
[371602307,1752364298402,-875.6,0.0005863,120]
[371602308,1752364298412,-3055.91,0.0005863,120]
[371602309,1752364298422,-460.0,0.0005863,120]
[371602310,1752364298433,-460.0,0.0005863,120]
[371602311,1752364298443,-151.0,0.0005863,120]
[371602312,1752364298452,-460.0,0.0005863,120]
[371602313,1752364298462,-1062.22,0.0005863,120]
[371602314,1752364298472,-1522.28,0.0005863,120]
[371602315,1752364298482,-460.0,0.0005863,120]
[371602316,1752364298492,-941.97,0.0005863,120]
[371602317,1752364298501,-500.0,0.0005863,120]
[371602318,1752364298511,-7044.76,0.0005863,120]
[371602319,1752364298521,-151.0,0.0005863,120]
[371602320,1752364298530,-151.0,0.0005863,120]
[371602321,1752364298540,-4946.23,0.0005863,120]
[371602322,1752364298550,-1018.4,0.0005863,120]
[371602323,1752364298563,-460.0,0.0005863,120]
[371602324,1752364298573,-533.92,0.0005863,120]
[371602325,1752364298583,-619.59,0.0005863,120]
[371602326,1752364298594,-471.30265845,0.0005863,120]
[371602327,1752364298604,-583.61,0.0005863,120]
[371602328,1752364298614,-460.0,0.0005863,120]
[371602329,1752364298625,-884.35,0.0005863,120]
[371602330,1752364298635,-4277.36,0.0005863,120]
[371602331,1752364298646,-460.0,0.0005863,120]
[371602332,1752364298657,-486.62,0.0005863,120]
[371602333,1752364298667,-460.0,0.0005863,120]
[371602334,1752364298678,-460.0,0.0005863,120]
[371602335,1752364298688,-460.0,0.0005863,120]
[371602336,1752364298698,-647.21,0.0005863,120]
[371602337,1752364298708,-794.52,0.0005863,120]
[371602338,1752364298727,-460.0,0.0005863,120]
[371602339,1752364298741,-4132.0,0.0005863,120]
[371602340,1752364298751,-1142.89,0.0005863,120]
[371602341,1752364298761,-151.0,0.0005863,30]
[371602342,1752364298771,-1994.71,0.0005863,120]
[371602343,1752364298781,-151.0,0.0005863,30]
[371602344,1752364298791,-7859.85,0.0005863,120]
[371602345,1752364298801,-460.0,0.0005863,120]
[371602346,1752364298811,-545.08,0.0005863,120]
[371602347,1752364298822,-460.0,0.0005863,120]
[371602348,1752364298833,-460.0,0.0005863,120]
[371602349,1752364298843,-801.47,0.0005863,120]
[371602350,1752364298859,-460.0,0.0005863,120]
[371602351,1752364298869,-1034.36,0.0005863,120]
[371602352,1752364298879,-460.0,0.0005863,120]
[371602353,1752364298889,-315.292787,0.0005863,120]
[371602354,1752364298899,-1963.21,0.0005863,120]
[371602355,1752364298910,-315.292787,0.0005863,120]
[371602356,1752364298919,-1190.64,0.0005863,120]
[371602357,1752364298930,-460.0,0.0005863,120]
[371602358,1752364298939,-1121.38,0.0005863,120]
[371602359,1752364298948,-506.14,0.0005863,120]
[371602360,1752364298958,-770.28,0.0005863,120]
[371602361,1752364298968,-315.292787,0.0005863,120]
[371602362,1752364298979,-863.35,0.0005863,120]
[371602363,1752364298990,-1842.08,0.0005863,120]
[371602364,1752364299002,-837.61,0.0005863,120]
[371602365,1752364299012,-6049.59,0.0005863,120]
[371602366,1752364299022,-315.292787,0.0005863,120]
[371602367,1752364299031,-460.0,0.0005863,120]
[371602368,1752364299041,-460.0,0.0005863,120]
[371602369,1752364299051,-460.0,0.0005863,120]
[371602370,1752364299061,-578.49,0.0005863,120]
[371602371,1752364299070,-672.61,0.0005863,120]
[371602372,1752364299079,-803.03,0.0005863,120]
[371602373,1752364299089,-460.0,0.0005863,120]
[371602374,1752364299099,-739.51,0.0005863,120]
[371602375,1752364299108,-460.0,0.0005863,120]
[371602376,1752364299118,-460.0,0.0005863,120]
[371602377,1752364299128,-1850.39,0.0005863,120]
[371602378,1752364299138,-460.0,0.0005863,120]
[371602379,1752364299148,-755.96,0.0005863,120]
[371602380,1752364299158,-1635.98,0.0005863,120]
[371602381,1752364299168,-460.0,0.0005863,120]
[371602382,1752364299180,-460.0,0.0005863,120]
[371602383,1752364299190,-460.0,0.0005863,120]
[371602384,1752364299200,-2404.46,0.0005863,120]
[371602385,1752364299210,-460.0,0.0005863,120]
[371602386,1752364299219,-1683.65,0.0005863,120]
[371602387,1752364299231,-2341.71,0.0005863,120]
[371602388,1752364299242,-485.97,0.0005863,120]
[371602389,1752364299255,-151.0,0.0005863,120]
[371602390,1752364299264,-2438.09,0.0005863,120]
[371602391,1752364299276,-871.55,0.0005863,120]
[371602392,1752364299286,-460.0,0.0005863,120]
[371602393,1752364299297,-1389.63,0.0005863,120]
[371602394,1752364299308,-460.0,0.0005863,120]
[371602395,1752364299318,-460.0,0.0005863,120]
[371602396,1752364299329,-460.0,0.0005863,120]
[371602397,1752364299339,-639.27,0.0005863,120]
[371602398,1752364299348,-460.0,0.0005863,120]
[371602399,1752364299358,-460.0,0.0005863,120]
[371602400,1752364299368,-1655.05,0.0005863,120]
[371602401,1752364299378,-1002.762163,0.0005863,120]
[371602402,1752364299388,-460.0,0.0005863,120]
[371602403,1752364299399,-535.7,0.0005863,120]
[371602404,1752364299410,-460.0,0.0005863,120]
[371602405,1752364299421,-586.3,0.0005863,120]
[371602406,1752364299432,-6753.33,0.0005863,120]
[371602407,1752364299442,-460.0,0.0005863,120]
[371602408,1752364299451,-3611.87,0.0005863,120]
[371602409,1752364299462,-460.0,0.0005863,120]
[371602410,1752364299474,-1312.37,0.0005863,120]
[371602411,1752364299484,-460.0,0.0005863,120]
[371602412,1752364299495,-1002.762163,0.0005863,120]
[371602413,1752364299505,-948.53,0.0005863,120]
[371602414,1752364299515,-1684.16,0.0005863,120]
[371602415,1752364299526,-630.86,0.0005863,120]
[371602416,1752364299538,-524.27,0.0005863,120]
[371602417,1752364299550,-523.69,0.0005863,120]
[371602418,1752364299573,-3018.7,0.0005863,118]
[371602419,1752364299591,-460.0,0.0005863,120]
[371602420,1752364299603,-264.937378,0.0005863,120]
[371602421,1752364299614,-1089.17,0.0005863,120]
[371602422,1752364299624,-460.0,0.0005863,120]
[371602423,1752364299634,-460.0,0.0005863,120]
[371602424,1752364299644,-460.0,0.0005863,120]
[371602425,1752364299654,-264.937378,0.0005863,120]
[371602426,1752364299664,-460.0,0.0005863,120]
[371602427,1752364299675,-802.08,0.0005863,120]
[371602428,1752364299686,-3768.04,0.0005863,120]
[371602429,1752364299696,-515.23,0.0005863,120]
[371602430,1752364299706,-460.0,0.0005863,120]
[371602431,1752364299717,-1216.69,0.0005863,120]
[371602432,1752364299727,-460.0,0.0005863,120]
[371602433,1752364299737,-460.0,0.0005863,120]
[371602434,1752364299747,-460.0,0.0005863,120]
[371602435,1752364299757,-460.0,0.0005863,120]
[371602436,1752364299767,-2249.96,0.0005863,120]
[371602437,1752364299777,-460.0,0.0005863,120]
[371602438,1752364299787,-584.32,0.0005863,120]
[371602439,1752364299797,-5321.97,0.0005863,120]
[371602440,1752364299807,-2331.41,0.0005863,120]
[371602441,1752364299817,-681.21,0.0005863,120]
[371602442,1752364299827,-873.5,0.0005863,120]
[371602443,1752364299836,-460.0,0.0005863,120]
[371602444,1752364299847,-1834.58,0.0005863,120]
[371602445,1752364299857,-891.02,0.0005863,120]
[371602446,1752364299867,-2135.92,0.0005863,120]
[371602447,1752364299877,-460.0,0.0005863,120]
[371602448,1752364299887,-946.37,0.0005863,120]
[371602449,1752364299897,-1974.58,0.0005863,120]
[371602450,1752364299907,-208.9175469,0.0005863,120]
[371602451,1752364299916,-4228.16,0.0005863,120]
[371602452,1752364299926,-747.97,0.0005863,120]
[371602453,1752364299936,-460.0,0.0005863,120]
[371602454,1752364299946,-460.0,0.0005863,120]
[371602455,1752364299956,-1370.6,0.0005863,120]
[371602456,1752364299966,-460.0,0.0005863,120]
[371602457,1752364299975,-2502.43,0.0005863,120]
[371602458,1752364299985,-1118.12,0.0005863,120]
[371602459,1752364299995,-460.0,0.0005863,120]
[371602460,1752364300005,-460.0,0.0005863,120]
[371602461,1752364300015,-1119.84,0.0005863,120]
[371602462,1752364300025,-465.28,0.0005863,120]
[371602463,1752364300035,-5008.64,0.0005863,120]
[371602464,1752364300046,-151.0,0.0005863,120]
[371602465,1752364300056,-2278.97,0.0005863,120]
[371602466,1752364300066,-460.0,0.0005863,120]
[371602467,1752364300076,-165.99649,0.0005863,120]
[371602468,1752364300086,-460.0,0.0005863,120]
[371602469,1752364300097,-6459.66,0.0005863,120]
[371602470,1752364300107,-1343.31,0.0005863,120]
[371602471,1752364300118,-460.0,0.0005863,120]
[371602472,1752364300128,-460.0,0.0005863,120]
[371602473,1752364300138,-615.35,0.0005863,120]
[371602474,1752364300148,-984.93,0.0005863,120]
[371602475,1752364300158,-460.0,0.0005863,120]
[371602476,1752364300168,-1981.94,0.0005863,120]
[371602477,1752364300177,-606.9,0.0005863,120]
[371602478,1752364300187,-460.0,0.0005863,120]
[371602479,1752364300197,-975.02,0.0005863,120]
[371602480,1752364300207,-3061.6,0.0005863,120]
[371602481,1752364300217,-460.0,0.0005863,120]
[371602482,1752364300228,-6706.1040599,0.0005863,120]
[371602483,1752364300842,-460.0,0.00058082,120]
[371602484,1752364300851,-460.0,0.00058356,120]
[371602485,1752364300860,-2502.23179209,0.0005863,120]
[371602486,1752364301489,-150.0,0.00057156,14]
[371602487,1752364301500,-150.0,0.00057388,14]
[371602488,1752364301510,-150.0,0.00057397,14]
[371602489,1752364301519,-1988.14,0.00057534,120]
[371602490,1752364301528,-150.0,0.00057633,14]
[371602491,1752364301538,-567.71,0.00057808,120]
[371602492,1752364301547,-1988.14,0.00057808,120]
[371602493,1752364301558,-150.0,0.00058005,14]
[371602494,1752364301568,-567.71,0.00058082,120]
[371602495,1752364301578,-567.71,0.00058356,120]
[371602496,1752364301588,-150.0,0.00058357,14]
[371602497,1752364301599,-150.0,0.00058471,14]
[371602498,1752364301609,-150.0,0.00058516,14]
[371602499,1752364301619,-1795.60414801,0.0005863,120]
[371602500,1752364301628,-460.0,0.0005863,120]
[371602501,1752364301639,-581.165513,0.0005863,120]
[371602502,1752364301648,-581.165513,0.0005863,120]
[371602503,1752364301659,-460.0,0.0005863,120]
[371602504,1752364301669,-925.36,0.0005863,120]
[371602505,1752364301679,-460.0,0.0005863,120]
[371602506,1752364301690,-2752.9,0.0005863,14]
[371602507,1752364301699,-507.07,0.0005863,120]
[371602508,1752364301709,-460.0,0.0005863,120]
[371602509,1752364301718,-581.165513,0.0005863,120]
[371602510,1752364301728,-460.0,0.0005863,120]
[371602511,1752364301737,-1186.54,0.0005863,120]
[371602512,1752364301747,-581.165513,0.0005863,120]
[371602513,1752364301756,-151.0,0.0005863,120]
[371602514,1752364301767,-460.0,0.0005863,120]
[371602515,1752364301777,-151.0,0.0005863,120]
[371602516,1752364301788,-3930.77,0.0005863,120]
[371602517,1752364301799,-1333.04,0.0005863,120]
[371602518,1752364301808,-699.78,0.0005863,120]
[371602519,1752364301818,-460.0,0.0005863,120]
[371602520,1752364301828,-936.35,0.0005863,120]
[371602521,1752364301839,-460.0,0.0005863,120]
[371602522,1752364301849,-752.47,0.0005863,120]
[371602523,1752364301858,-460.0,0.0005863,120]
[371602524,1752364301868,-460.0,0.0005863,120]
[371602525,1752364301878,-716.61,0.0005863,120]
[371602526,1752364301888,-1147.76,0.0005863,120]
[371602527,1752364301899,-461.9,0.0005863,120]
[371602528,1752364301909,-2583.0,0.0005863,120]
[371602529,1752364301918,-1372.31,0.0005863,120]
[371602530,1752364301928,-460.0,0.0005863,120]
[371602531,1752364301938,-33202.78,0.0005863,120]
[371602532,1752364301947,-986.71,0.0005863,120]
[371602533,1752364301957,-460.0,0.0005863,120]
[371602534,1752364301966,-460.0,0.0005863,120]
[371602535,1752364301975,-420.0,0.0005863,120]
[371602536,1752364301984,-460.0,0.0005863,120]
[371602537,1752364301994,-460.0,0.0005863,120]
[371602538,1752364302004,-460.0,0.0005863,120]
[371602539,1752364302013,-460.0,0.0005863,120]
[371602540,1752364302023,-460.0,0.0005863,120]
[371602541,1752364302032,-1612.55,0.0005863,120]
[371602542,1752364302042,-460.0,0.0005863,120]
[371602543,1752364302052,-3889.54,0.0005863,120]
[371602544,1752364302061,-608.67,0.0005863,120]
[371602545,1752364302070,-460.0,0.0005863,120]
[371602546,1752364302080,-546.45,0.0005863,120]
[371602547,1752364302089,-460.0,0.0005863,120]
[371602548,1752364302098,-460.0,0.0005863,120]
[371602549,1752364302108,-1119.98,0.0005863,120]
[371602550,1752364302118,-460.0,0.0005863,120]
[371602551,1752364302127,-460.0,0.0005863,120]
[371602552,1752364302137,-563.72,0.0005863,120]
[371602553,1752364302146,-460.0,0.0005863,120]
[371602554,1752364302155,-460.0,0.0005863,120]
[371602555,1752364302165,-534.94,0.0005863,120]
[371602556,1752364302175,-663.79,0.0005863,120]
[371602557,1752364302185,-460.0,0.0005863,120]
[371602558,1752364302195,-1271.91,0.0005863,120]
[371602559,1752364302204,-460.0,0.0005863,120]
[371602560,1752364302216,-2099.13,0.0005863,120]
[371602561,1752364302226,-805.97,0.0005863,120]
[371602562,1752364302236,-617.17,0.0005863,120]
[371602563,1752364302247,-4328.75,0.0005863,120]
[371602564,1752364302257,-3159.17,0.0005863,120]
[371602565,1752364302268,-1899.54,0.0005863,120]
[371602566,1752364302279,-460.0,0.0005863,120]
[371602567,1752364302289,-460.0,0.0005863,120]
[371602568,1752364302299,-772.37,0.0005863,120]
[371602569,1752364302308,-460.0,0.0005863,120]
[371602570,1752364302317,-460.0,0.0005863,120]
[371602571,1752364302326,-151.0,0.0005863,120]
[371602572,1752364302335,-460.0,0.0005863,120]
[371602573,1752364302345,-151.0,0.0005863,120]
[371602574,1752364302355,-567.71,0.0005863,120]
[371602575,1752364302365,-150.0,0.00058632,14]
[371602576,1752364302375,-1539.31262093,0.00058632,10]
[371602577,1752364302385,-1661.78639257,0.00058635,120]
[371602578,1752364302395,-152.0,0.00058636,90]
[371602579,1752364302404,-150.0,0.0005864,14]
[371602580,1752364302414,-1059.2317807,0.00058645,10]
[371602581,1752364302425,-301.12,0.0005865,2]
[371602582,1752364302436,-302.11,0.0005865,2]
[371602583,1752364302445,-1425.92388809,0.00058653,10]
[371602584,1752364302455,-1638.33064962,0.00058654,10]
[371602585,1752364302467,-151.0,0.00058656,120]
[371602586,1752364302479,-151.0,0.00058656,120]
[371602587,1752364302491,-1002.762163,0.00058656,120]
[371602588,1752364302502,-1002.762163,0.00058656,120]
[371602589,1752364302512,-264.937378,0.00058656,120]
[371602590,1752364302522,-264.937378,0.00058656,120]
[371602591,1752364302533,-150.0,0.00058657,60]
[371602592,1752364302544,-150.0,0.00058669,14]
[371602593,1752364302556,-150.0,0.00058694,14]
[371602594,1752364302567,-1000.0,0.00058695,60]
[371602595,1752364302577,-1638.33064962,0.00058698,10]
[371602596,1752364302587,-2671.64,0.000587,30]
[371602597,1752364302598,-1888.68,0.000587,62]
[371602598,1752364302608,-150.0,0.00058701,14]
[371602599,1752364302618,-1000.0,0.00058706,60]
[371602600,1752364302629,-34560.1345266,0.0005871,10]
[371602601,1752364302640,-150.0,0.00058713,14]
[371602602,1752364302651,-150.0,0.00058714,14]
[371602603,1752364302661,-34560.1345266,0.00058716,10]
[371602604,1752364302674,-150.0,0.0005872,14]
[371602605,1752364302683,-34560.1345266,0.00058722,10]
[371602606,1752364302693,-3345.0,0.00058725,120]
[371602607,1752364302704,-950.0,0.00058725,120]
[371602608,1752364302715,-156.072,0.00058725,120]
[371602609,1752364302726,-680.694,0.00058725,120]
[371602610,1752364302735,-805.0,0.00058725,2]
[371602611,1752364302745,-2012.0,0.00058725,120]
[371602612,1752364302755,-928.0,0.00058725,120]
[371602613,1752364302768,-1284.0,0.00058725,120]
[371602614,1752364302779,-594.0,0.00058725,120]
[371602615,1752364302788,-561.0,0.00058725,120]
[371602616,1752364302799,-1683.0,0.00058725,120]
[371602617,1752364302809,-860.0,0.00058725,120]
[371602618,1752364302819,-755.0,0.00058725,120]
[371602619,1752364302829,-2216.0,0.00058725,2]
[371602620,1752364302840,-4116.0,0.00058725,120]
[371602621,1752364302850,-6036.0,0.00058725,120]
[371602622,1752364302860,-150.0,0.00058741,14]
[371602623,1752364302870,-150.0,0.00058748,14]
[371602624,1752364302880,-2000.0,0.0005875,90]
[371602625,1752364302891,-1372.71,0.00058766,120]
[371602626,1752364302901,-500.0,0.00058767,120]
[371602627,1752364302911,-150.0,0.00058777,14]
[371602628,1752364302921,-34560.1345266,0.00058778,10]
[371602629,1752364302931,-1425.92388809,0.00058783,10]
[371602630,1752364302940,-1210.0,0.00058784,7]
[371602631,1752364302950,-1425.92388809,0.00058787,10]
[371602632,1752364302960,-246.0,0.00058793,2]
[371602633,1752364302971,-150.0,0.00058794,14]
[371602634,1752364302981,-1000.0,0.00058798,120]
[371602635,1752364302991,-300.0,0.000588,21]
[371602636,1752364303002,-1539.31262093,0.00058803,10]
[371602637,1752364303011,-403.4898945,0.00058804,120]
[371602638,1752364303021,-280.113744,0.00058804,120]
[371602639,1752364303030,-280.113744,0.00058804,120]
[371602640,1752364303040,-263.350863,0.00058804,120]
[371602641,1752364303051,-151.0,0.00058804,120]
[371602642,1752364303060,-1002.762163,0.00058804,120]
[371602643,1752364303070,-1002.762163,0.00058804,120]
[371602644,1752364303080,-264.937378,0.00058804,120]
[371602645,1752364303090,-264.937378,0.00058804,120]
[371602646,1752364303100,-354.97848894,0.00058804,2]
[371602647,1752364303110,-1059.2317807,0.00058805,10]
[371602648,1752364303120,-509.0,0.00058813,48]
[371602649,1752364303129,-150.0,0.00058813,14]
[371602650,1752364303139,-1638.33064962,0.00058818,10]
[371602651,1752364303149,-210.72563098,0.0005882,60]
[371602652,1752364303160,-150.0,0.00058821,14]
[371602653,1752364303169,-4786.29146981,0.00058823,10]
[371602654,1752364303211,-2248.78743322,0.00058823,10]
[371602655,1752364303222,-759.11621391,0.00058825,120]
[371602656,1752364303232,-150.0,0.00058826,14]
[371602657,1752364303242,-1059.2317807,0.00058838,10]
[371602658,1752364303252,-34560.1345266,0.00058838,10]
[371602659,1752364303262,-1425.92388809,0.00058839,10]
[371602660,1752364303272,-150.0,0.00058841,14]
[371602661,1752364303282,-1539.31262093,0.0005885,10]
[371602662,1752364303292,-150.0,0.00058858,14]
[371602663,1752364303302,-150.0,0.0005886,14]
[371602664,1752364303312,-221.52,0.00058878,2]
[371602665,1752364303322,-1425.92388809,0.00058883,10]
[371602666,1752364303332,-34560.1345266,0.00058885,10]
[371602667,1752364303342,-1425.92388809,0.00058891,10]
[371602668,1752364303352,-1638.33064962,0.00058893,10]
[371602669,1752364303361,-151.0,0.00058895,120]
[371602670,1752364303372,-151.0,0.00058895,120]
[371602671,1752364303381,-151.0,0.00058895,120]
[371602672,1752364303391,-237.770657,0.00058895,120]
[371602673,1752364303402,-237.770657,0.00058895,120]
[371602674,1752364303411,-526.817712,0.00058895,120]
[371602675,1752364303421,-526.817712,0.00058895,120]
[371602676,1752364303431,-277.273979,0.00058895,120]
[371602677,1752364303441,-277.273979,0.00058895,120]
[371602678,1752364303451,-1022.6896805,0.00058895,2]
[371602679,1752364303460,-7660.3183175,0.00058895,2]
[371602680,1752364303470,-74689.48863824,0.00058895,2]
[371602681,1752364304467,-121.15563553,0.00054844,120]
[371602682,1752364304479,-40.63211443,0.00054844,120]
[371602683,1752364304488,-191.69474862,0.0005705,120]
[371602684,1752364304498,-563.58,0.00057534,120]
[371602685,1752364304508,-460.0,0.00057534,120]
[371602686,1752364304517,-460.0,0.00057534,120]
[371602687,1752364304527,-22.52983695,0.00058082,120]
[371602688,1752364304538,-459.299616,0.00058082,120]
[371602689,1752364305689,-191.69474862,0.00057105,120]
[371602690,1752364305699,-758.79659249,0.00057534,120]
[371602691,1752364310742,210.50656006,0.00027,3]
[371602692,1752364311507,210.50656006,0.00028,10]
[371602693,1752364311833,210.50656006,0.00027,3]
[371602695,1752364567505,1278.73535904,0.00042,30]